fUSD/lending_fUSD_20240223
["ID","MTS","AMOUNT","RATE_DAILY","PERIOD"]
[314998381,1708722634973,-500.0,0.00029725,2]
[314998382,1708722634984,-500.0,0.00029725,2]
[314998383,1708722634994,-500.0,0.00029725,2]
[314998384,1708722635004,-914.7,0.00029725,2]
[314998385,1708722635014,-500.0,0.00029725,2]
[314998386,1708722635025,-500.0,0.00029725,2]
[314998387,1708722635040,-500.0,0.00029725,2]
[314998388,1708722635050,-373.11863572,0.00029725,2]
[314998389,1708722635061,-500.0,0.00029725,2]
[314998390,1708722635072,-174.50442647,0.00029799,2]
[314998391,1708722635087,-533.7797639,0.00029799,2]
[314998392,1708722635098,-275.5,0.000298,2]
[314998393,1708722635111,-625.4,0.0002981,2]
[314998394,1708722635124,-500.0,0.00029812,2]
[314998395,1708722635135,-500.0,0.00029812,2]
[314998396,1708722635147,-632.05,0.00029812,2]
[314998397,1708722635159,-500.0,0.00029817,2]
[314998398,1708722635174,-500.0,0.00029817,2]
[314998399,1708722635186,-500.0,0.00029862,2]
[314998400,1708722635199,-500.0,0.00029862,2]
[314998401,1708722635210,-500.0,0.00029862,2]
[314998402,1708722635221,-500.0,0.00029862,2]
[314998403,1708722635231,-500.0,0.00029862,2]
[314998404,1708722635242,-914.7,0.00029862,2]
[314998405,1708722635252,-500.0,0.00029862,2]
[314998406,1708722635261,-500.0,0.00029862,2]
[314998407,1708722635272,-500.0,0.00029862,2]
[314998408,1708722635283,-500.0,0.00029862,2]
[314998409,1708722635293,-201.49397348,0.0002987,2]
[314998410,1708722635304,-306792.5951661,0.0002988,2]
[314998414,1708722638239,-500.0,0.0002831,2]
[314998415,1708722638251,-500.0,0.00028447,2]
[314998416,1708722638261,-500.0,0.00028584,2]
[314998417,1708722638271,-151.0,0.00028699,2]
[314998418,1708722638285,-151.0,0.00028699,2]
[314998419,1708722638295,-500.0,0.00028721,2]
[314998420,1708722638305,-225.46,0.00028858,2]
[314998421,1708722638315,-500.0,0.00029314,2]
[314998422,1708722638327,-216405.83648116,0.0002988,2]
[314998423,1708722638337,-1853.54418678,0.000299,2]
[314998424,1708722638347,-500.0,0.00029949,2]
[314998425,1708722638357,-500.0,0.00029949,2]
[314998427,1708722638368,-500.0,0.00029954,2]
[314998429,1708722638378,-500.0,0.00029954,2]
[314998430,1708722638388,-500.0,0.0002997,2]
[314998431,1708722638398,-206.29928259,0.00029999,2]
[314998432,1708722638408,-783.35751895,0.00029999,2]
[314998434,1708722638419,-150.65,0.00029999,2]
[314998436,1708722638429,-500.0,0.00029999,2]
[314998438,1708722638439,-500.0,0.00029999,2]
[314998439,1708722638449,-500.0,0.00029999,2]
[314998440,1708722638459,-914.7,0.00029999,2]
[314998441,1708722638469,-500.0,0.00029999,2]
[314998442,1708722638479,-500.0,0.00029999,2]
[314998443,1708722638489,-279.5022437,0.0003,120]
[314998444,1708722638499,-910.10043294,0.0003,2]
[314998445,1708722638509,-2000.0,0.0003,2]
[314998446,1708722638520,-14103.83484867,0.0003,2]
[314998447,1708722638530,-2850.0,0.0003,2]
[314998448,1708722638540,-3000.0,0.0003,2]
[314998449,1708722638550,-5372.066767,0.0003001,2]
[314998450,1708722638560,-500.0,0.00030086,2]
[314998451,1708722638570,-500.0,0.00030086,2]
[314998452,1708722638582,-500.0,0.00030091,2]
[314998453,1708722638591,-500.0,0.00030091,2]
[314998454,1708722638602,-500.0,0.00030136,2]
[314998455,1708722638613,-202.3,0.00030136,2]
[314998456,1708722638623,-500.0,0.00030136,2]
[314998457,1708722638633,-914.7,0.00030136,2]
[314998458,1708722638643,-500.0,0.00030136,2]
[314998459,1708722638652,-500.0,0.00030223,2]
[314998460,1708722638664,-500.0,0.00030223,2]
[314998461,1708722638674,-500.0,0.00030228,2]
[314998462,1708722638684,-500.0,0.00030228,2]
[314998463,1708722638694,-500.0,0.00030273,2]
[314998464,1708722638704,-500.0,0.00030273,2]
[314998465,1708722638714,-914.7,0.00030273,2]
[314998466,1708722638724,-500.0,0.00030273,2]
[314998467,1708722638734,-385.1,0.0003036,2]
[314998468,1708722638744,-500.0,0.0003036,2]
[314998469,1708722638754,-222.9,0.00030365,2]
[314998470,1708722638763,-500.0,0.00030365,2]
[314998471,1708722638773,-500.0,0.0003041,2]
[314998472,1708722638783,-500.0,0.0003041,2]
[314998473,1708722638793,-914.7,0.0003041,2]
[314998474,1708722638803,-500.0,0.0003041,2]
[314998475,1708722638814,-206.29928259,0.00030413,2]
[314998476,1708722638825,-3565.2237456,0.00030474,7]
[314998477,1708722638835,-882.39287704,0.00030474,7]
[314998478,1708722638845,-1787.41049533,0.00030474,7]
[314998479,1708722638856,-9284.41839947,0.00030474,7]
[314998480,1708722638866,-232.86,0.00030488,2]
[314998481,1708722638876,-279.1720683,0.00030496,6]
[314998482,1708722638886,-500.0,0.00030496,2]
[314998483,1708722638896,-500.0,0.00030502,2]
[314998484,1708722638906,-500.0,0.00030547,2]
[314998485,1708722638917,-500.0,0.00030547,2]
[314998486,1708722638928,-914.7,0.00030547,2]
[314998487,1708722638939,-256.74,0.00030547,2]
[314998488,1708722638949,-500.0,0.00030633,2]
[314998489,1708722638960,-500.0,0.00030639,2]
[314998490,1708722638970,-500.0,0.00030684,2]
[314998491,1708722638980,-241.7,0.00030684,2]
[314998492,1708722638990,-914.7,0.00030684,2]
[314998493,1708722639000,-500.0,0.0003077,2]
[314998494,1708722639010,-323.75,0.00030776,2]
[314998495,1708722639021,-500.0,0.00030821,2]
[314998496,1708722639032,-914.7,0.00030821,2]
[314998497,1708722639046,-206.29928259,0.00030827,2]
[314998498,1708722639055,-150.18,0.00030831,2]
[314998499,1708722639066,-500.0,0.00030907,2]
[314998500,1708722639083,-158.55,0.00030932,2]
[314998501,1708722639099,-232.75,0.00030958,2]
[314998502,1708722639110,-914.7,0.00030958,2]
[314998503,1708722639125,-900.0,0.00031,3]
[314998504,1708722639139,-302.04,0.00031,2]
[314998505,1708722639536,-500.0,0.00031044,2]
[314998506,1708722639546,-151.0,0.00031082,120]
[314998507,1708722639555,-174.50442647,0.00031091,2]
[314998508,1708722639565,-914.7,0.00031095,2]
[314998509,1708722639574,-204.0,0.00031142,14]
[314998510,1708722639584,-615.3,0.00031181,2]
[314998511,1708722639593,-914.7,0.00031232,2]
[314998512,1708722639602,-206.29928259,0.00031241,2]
[314998513,1708722639611,-5000.0,0.00031347,2]
[314998514,1708722639620,-914.7,0.00031369,2]
[314998515,1708722639629,-50719.40417576,0.00031447,7]
[314998516,1708722639639,-266484.30237557,0.00031447,7]
[314998517,1708722639648,-48252.76812968,0.00031447,7]
[314998518,1708722639658,-11824.5675514,0.00031447,7]
[314998519,1708722639669,-4610.06511837,0.00031447,7]
[314998520,1708722639679,-13625.82362867,0.000315,3]
[314998521,1708722639688,-914.7,0.00031506,2]
[314998522,1708722639697,-172.30325014,0.000316,2]
[314998523,1708722639706,-914.7,0.00031643,2]
[314998524,1708722639715,-206.29928259,0.00031655,2]
[314998525,1708722639724,-151.0,0.00031716,30]
[314998526,1708722639734,-555.84,0.00031716,2]
[314998527,1708722639743,-914.7,0.0003178,2]
[314998528,1708722639752,-914.7,0.00031916,2]
[314998529,1708722639761,-914.7,0.00032053,2]
[314998530,1708722639771,-206.29928259,0.00032069,2]
[314998531,1708722639780,-400.0,0.0003207,2]
[314998532,1708722639789,-300.0,0.0003207,2]
[314998533,1708722639799,-625.4,0.00032074,2]
[314998534,1708722639808,-150.18,0.00032077,2]
[314998535,1708722639817,-302.04,0.00032085,2]
[314998536,1708722639828,-232.86,0.00032132,2]
[314998537,1708722639837,-13625.82362861,0.00032172,3]
[314998538,1708722639846,-914.7,0.0003219,2]
[314998539,1708722639855,-914.7,0.00032327,2]
[314998540,1708722639864,-151.0,0.00032363,7]
[314998541,1708722639874,-174.50442647,0.00032384,2]
[314998542,1708722639883,-158.535125,0.0003243,2]
[314998543,1708722639892,-156.90607,0.0003243,2]
[314998544,1708722639901,-158.196154,0.0003243,2]
[314998545,1708722639910,-158.84317,0.0003243,2]
[314998546,1708722639920,-155.007164,0.0003243,2]
[314998547,1708722639930,-150.0,0.00032453,7]
[314998548,1708722639939,-914.70006354,0.00032464,2]
[314998549,1708722639951,-206.29928259,0.00032483,2]
[314998550,1708722639961,-444.16,0.00032569,2]
[314998551,1708722639971,-723.57195719,0.000327,2]
[314998552,1708722639981,-723.571957,0.000327,2]
[314998553,1708722639991,-723.571957,0.000327,2]
[314998554,1708722640002,-723.571957,0.000327,2]
[314998555,1708722640013,-723.571957,0.000327,2]
[314998556,1708722640028,-723.571957,0.000327,2]
[314998557,1708722640041,-723.571957,0.000327,2]
[314998558,1708722640052,-13625.82362861,0.00032845,4]
[314998559,1708722640062,-150.1,0.00032877,2]
[314998560,1708722640074,-188.38,0.00032877,2]
[314998561,1708722640084,-150.0,0.00032877,2]
[314998562,1708722640094,-194.64,0.00032877,2]
[314998563,1708722640105,-250.0,0.00032877,2]
[314998564,1708722640116,-206.29928259,0.00032897,2]
[314998565,1708722640126,-8000.0,0.000329,2]
[314998566,1708722640136,-158.535125,0.00032971,2]
[314998567,1708722640145,-1278.0,0.00033,3]
[314998568,1708722640155,-1000.0,0.00033,3]
[314998569,1708722640165,-168.0,0.00033,2]
[314998570,1708722640175,-950.0,0.00033,3]
[314998571,1708722640185,-165.0,0.00033,2]
[314998572,1708722640195,-151.0,0.00033024,4]
[314998573,1708722640204,-302.04,0.0003317,2]
[314998574,1708722640214,-158.196154,0.00033241,2]
[314998575,1708722640224,-206.29928259,0.00033312,2]
[314998576,1708722640233,-150.18,0.00033323,2]
[314998577,1708722640243,-153.72,0.000334,2]
[314998578,1708722640252,-157.0,0.00033421,2]
[314998579,1708722640262,-1111.11,0.000335,2]
[314998580,1708722640271,-1111.11,0.000335,2]
[314998581,1708722640281,-1111.11,0.000335,2]
[314998582,1708722640290,-1111.11,0.000335,2]
[314998583,1708722640299,-1111.11,0.000335,2]
[314998584,1708722640309,-1111.11,0.000335,2]
[314998585,1708722640318,-1111.11,0.000335,2]
[314998586,1708722640329,-1111.11,0.000335,2]
[314998587,1708722640339,-1111.11,0.000335,2]
[314998588,1708722640348,-1111.11,0.000335,2]
[314998589,1708722640357,-1111.11,0.000335,2]
[314998590,1708722640367,-1111.11,0.000335,2]
[314998591,1708722640376,-1111.11,0.000335,2]
[314998592,1708722640386,-1111.11,0.000335,2]
[314998593,1708722640395,-1111.11,0.000335,2]
[314998594,1708722640404,-1111.11,0.000335,2]
[314998595,1708722640414,-1111.11,0.000335,2]
[314998596,1708722640423,-1111.11,0.000335,2]
[314998597,1708722640433,-1111.11,0.000335,2]
[314998598,1708722640442,-1111.11,0.000335,2]
[314998599,1708722640452,-158.535125,0.00033511,2]
[314998600,1708722640461,-13625.82362861,0.00033517,5]
[314998601,1708722640470,-174.50442647,0.00033676,2]
[314998602,1708722640479,-151.0,0.00033698,2]
[314998603,1708722640489,-206.29928259,0.00033726,2]
[314998604,1708722640499,-150.0,0.00033742,2]
[314998605,1708722640508,-232.86,0.00033775,2]
[314998606,1708722640517,-152.65575181,0.000339,2]
[314998607,1708722640527,-490.17962223,0.00033939,4]
[314998608,1708722640536,-1000.0,0.00034,4]
[314998609,1708722640545,-158.535125,0.00034052,2]
[314998610,1708722640555,-158.196154,0.00034052,2]
[314998611,1708722640564,-155.007164,0.00034052,2]
[314998612,1708722640575,-430.7049708,0.00034101,10]
[314998613,1708722640585,-13625.82362861,0.0003419,6]
[314998614,1708722640594,-8000.0,0.000342,2]
[314998615,1708722640605,-365.4,0.00034255,2]
[314998616,1708722640616,-154.16931544,0.0003433,7]
[314998617,1708722640626,-625.4,0.00034338,2]
[314998618,1708722640636,-154.16931544,0.00034402,7]
[314998619,1708722640645,-154.16931544,0.00034438,7]
[314998620,1708722640655,-224.72078485,0.00034446,7]
[314998621,1708722640665,-1000.0,0.000345,4]
[314998622,1708722640675,-8721.037796,0.0003452,2]
[314998623,1708722640685,-912.166528,0.0003452,2]
[314998624,1708722640695,-24128.386586,0.0003452,2]
[314998625,1708722640705,-456.083264,0.0003452,2]
[314998626,1708722640714,-500.0,0.0003452,4]
[314998627,1708722640724,-6976.830237,0.0003452,2]
[314998628,1708722640735,-500.0,0.0003452,4]
[314998629,1708722640745,-500.0,0.0003452,4]
[314998630,1708722640756,-500.0,0.0003452,4]
[314998631,1708722640766,-500.0,0.0003452,4]
[314998632,1708722640775,-500.0,0.0003452,2]
[314998633,1708722640785,-500.0,0.0003452,4]
[314998634,1708722640794,-5232.622677,0.0003452,2]
[314998635,1708722640804,-342.062448,0.0003452,2]
[314998636,1708722640814,-3488.415118,0.0003452,2]
[314998637,1708722640825,-10000.0,0.00034521,2]
[314998638,1708722640834,-168.0,0.00034521,2]
[314998639,1708722640844,-155.76031538,0.0003454,7]
[314998640,1708722640853,-150.18,0.00034568,2]
[314998641,1708722640862,-150.0,0.00034607,2]
[314998642,1708722640871,-165.11170113,0.00034611,7]
[314998643,1708722640881,-500.0,0.00034657,4]
[314998644,1708722640891,-500.0,0.00034657,2]
[314998645,1708722640900,-165.11170113,0.000347,7]
[314998646,1708722640910,-160.49481863,0.00034715,7]
[314998647,1708722640920,-165.11170113,0.00034726,7]
[314998648,1708722640929,-155.64218075,0.00034761,7]
[314998649,1708722640939,-157.0,0.0003479,2]
[314998650,1708722640950,-13081.556694,0.00034794,2]
[314998651,1708722640961,-1368.249792,0.00034794,2]
[314998652,1708722640971,-36192.57988,0.00034794,2]
[314998653,1708722640981,-684.124896,0.00034794,2]
[314998654,1708722640992,-10465.245355,0.00034794,2]
[314998655,1708722641002,-500.0,0.00034794,4]
[314998656,1708722641012,-500.0,0.00034794,2]
[314998657,1708722641022,-513.093672,0.00034794,2]
[314998658,1708722641036,-7848.934016,0.00034794,2]
[314998659,1708722641049,-5232.622678,0.00034794,2]
[314998660,1708722641059,-158.44336474,0.00034796,7]
[314998661,1708722641072,-165.11170113,0.00034844,7]
[314998662,1708722641084,-156.57354394,0.00034851,7]
[314998663,1708722641095,-13625.82362861,0.00034862,7]
[314998664,1708722641110,-200.0,0.000349,8]
[314998665,1708722641123,-1111.11,0.000349,2]
[314998666,1708722641134,-1111.11,0.000349,2]
[314998667,1708722641145,-1111.11,0.000349,2]
[314998668,1708722641156,-1111.11,0.000349,2]
[314998669,1708722641167,-1111.11,0.000349,2]
[314998670,1708722641177,-1111.11,0.000349,2]
[314998671,1708722641188,-1111.11,0.000349,2]
[314998672,1708722641198,-1111.11,0.000349,2]
[314998673,1708722641208,-1111.11,0.000349,2]
[314998674,1708722641217,-1111.11,0.000349,2]
[314998675,1708722641226,-1111.11,0.000349,2]
[314998676,1708722641236,-1111.11,0.000349,2]
[314998677,1708722641246,-1111.11,0.000349,2]
[314998678,1708722641256,-1111.11,0.000349,2]
[314998679,1708722641266,-1111.11,0.000349,2]
[314998680,1708722641276,-1111.11,0.000349,2]
[314998681,1708722641286,-1111.11,0.000349,2]
[314998682,1708722641296,-1111.11,0.000349,2]
[314998683,1708722641305,-1111.11,0.000349,2]
[314998684,1708722641315,-1111.11,0.000349,2]
[314998685,1708722641327,-4475.54650633,0.000349,2]
[314998686,1708722641337,-4475.54650614,0.000349,2]
[314998687,1708722641347,-4475.54650614,0.000349,2]
[314998688,1708722641357,-414.65,0.0003491,2]
[314998689,1708722641367,-201.49397348,0.00034921,2]
[314998690,1708722641376,-17442.075592,0.00034931,2]
[314998691,1708722641385,-1824.333056,0.00034931,2]
[314998692,1708722641395,-48256.773173,0.00034931,2]
[314998693,1708722641405,-912.166528,0.00034931,2]
[314998694,1708722641414,-13953.660474,0.00034931,2]
[314998695,1708722641425,-500.0,0.00034931,4]
[314998696,1708722641434,-500.0,0.00034931,2]
[314998697,1708722641444,-684.124896,0.00034931,2]
[314998698,1708722641454,-10465.245355,0.00034931,2]
[314998699,1708722641463,-6976.830237,0.00034931,2]
[314998700,1708722641473,-173.1772457,0.00034968,2]
[314998701,1708722641483,-174.50442647,0.00034968,2]
[314998702,1708722641492,-473.55836935,0.00034968,2]
[314998703,1708722641502,-460.35691082,0.00034968,2]
[314998704,1708722641511,-190.77438501,0.00034968,24]
[314998705,1708722641521,-611.3548274,0.00034968,2]
[314998706,1708722641530,-586.90975074,0.00035,4]
[314998707,1708722641540,-229.20433756,0.00035,7]
[314998708,1708722641549,-1000.0,0.00035,5]
[314998709,1708722641559,-155.20925086,0.00035,4]
[314998710,1708722641570,-153.72,0.00035,2]
[314998711,1708722641581,-153.72,0.00035,2]
[314998712,1708722641590,-150.0,0.00035,2]
[314998713,1708722641600,-1000.0,0.00035,3]
[314998714,1708722641609,-500.0,0.00035,2]
[314998715,1708722641619,-500.0,0.00035046,10]
[314998716,1708722641630,-201.49397348,0.00035058,2]
[314998717,1708722641640,-1095670.82448035,0.00035067,4]
[314998718,1708722641649,-19753.66775138,0.00035068,2]
[314998720,1708722641659,-21802.59449,0.00035068,2]
[314998722,1708722641669,-2280.416321,0.00035068,2]
[314998724,1708722641678,-60320.966466,0.00035068,2]
[314998726,1708722641687,-1140.20816,0.00035068,2]
[314998728,1708722641696,-17442.075592,0.00035068,2]
[314998730,1708722641706,-500.0,0.00035068,2]
[314998732,1708722641715,-855.15612,0.00035068,2]
[314998734,1708722641724,-13081.556694,0.00035068,2]
[314998736,1708722641733,-8721.037797,0.00035068,2]
[314998738,1708722641742,-167.02514081,0.00035072,7]
[314998739,1708722641752,-156.3052614,0.00035074,7]
[314998740,1708722641761,-155.64218075,0.00035092,7]
[314998741,1708722641771,-5002.44,0.000351,2]
[314998742,1708722641780,-165.11170113,0.00035111,7]
[314998743,1708722641789,-160.49481863,0.00035188,7]
[314998744,1708722641798,-165.11170113,0.00035196,7]
[314998745,1708722641808,-555.84,0.00035241,2]
[314998746,1708722641818,-204.0,0.00035265,21]
[314998747,1708722641827,-188.38,0.00035312,2]
[314998748,1708722641837,-239.77581035,0.00035315,7]
[314998749,1708722641846,-150.0,0.00035315,7]
[314998750,1708722641855,-150.0,0.00035315,7]
[314998751,1708722641864,-150.0,0.00035315,7]
[314998752,1708722641873,-150.0,0.00035315,7]
[314998753,1708722641882,-150.0,0.00035315,7]
[314998754,1708722641892,-213.36830761,0.00035315,7]
[314998755,1708722641901,-150.0,0.00035315,7]
[314998756,1708722641910,-150.0,0.00035315,7]
[314998757,1708722641919,-158.44336474,0.00035328,7]
[314998758,1708722641929,-30523.632287,0.00035342,2]
[314998759,1708722641938,-3192.582849,0.00035342,2]
[314998760,1708722641949,-84449.353053,0.00035342,2]
[314998761,1708722641958,-1596.291425,0.00035342,2]
[314998762,1708722641968,-24418.90583,0.00035342,2]
[314998763,1708722641977,-1197.218569,0.00035342,2]
[314998764,1708722641986,-18314.179372,0.00035342,2]
[314998765,1708722641995,-12209.452915,0.00035342,2]
[314998766,1708722642005,-154.16931544,0.00035343,7]
[314998767,1708722642015,-239.77581035,0.00035354,7]
[314998768,1708722642025,-165.11170113,0.00035373,7]
[314998769,1708722642035,-150.0,0.00035386,7]
[314998770,1708722642046,-239.77581035,0.00035393,7]
[314998771,1708722642056,-159.39088987,0.00035402,7]
[314998772,1708722642066,-232.86,0.00035419,2]
[314998773,1708722642076,-239.77581035,0.00035431,7]
[314998774,1708722642087,-150.0,0.00035435,7]
[314998775,1708722642097,-165.11170113,0.00035444,7]
[314998776,1708722642106,-150.0,0.00035457,7]
[314998777,1708722642118,-239.77581035,0.0003547,7]
[314998778,1708722642128,-150.0,0.00035472,2]
[314998779,1708722642138,-150.0,0.00035498,7]
[314998780,1708722642147,-1000.0,0.000355,5]
[314998781,1708722642157,-239.77581035,0.00035509,7]
[314998782,1708722642167,-150.0,0.00035517,7]
[314998783,1708722642176,-150.0,0.00035528,7]
[314998784,1708722642186,-13625.82362861,0.00035535,8]
[314998785,1708722642195,-239.77581035,0.00035548,7]
[314998786,1708722642205,-500.0,0.00035548,2]
[314998787,1708722642215,-154.16931544,0.00035549,7]
[314998788,1708722642225,-150.0,0.00035555,7]
[314998789,1708722642234,-239.77581035,0.00035587,7]
[314998790,1708722642243,-34884.151185,0.00035589,2]
[314998791,1708722642254,-3648.666113,0.00035589,2]
[314998792,1708722642263,-96513.546346,0.00035589,2]
[314998793,1708722642273,-1824.333057,0.00035589,2]
[314998794,1708722642282,-27907.320948,0.00035589,2]
[314998795,1708722642292,-1368.249793,0.00035589,2]
[314998796,1708722642301,-20930.490711,0.00035589,2]
[314998797,1708722642310,-13953.660475,0.00035589,2]
[314998798,1708722642320,-500.0,0.00035594,10]
[314998799,1708722642330,-150.0,0.000356,7]
[314998800,1708722642340,-6469.0,0.000356,2]
[314998801,1708722642349,-165.11170113,0.00035609,7]
[314998802,1708722642359,-155.64218075,0.00035617,7]
[314998803,1708722642368,-239.77581035,0.00035625,7]
[314998804,1708722642377,-239.77581035,0.00035664,7]
[314998805,1708722642386,-150.0,0.00035671,7]
[314998806,1708722642396,-150.0,0.00035675,7]
[314998807,1708722642405,-150.0,0.00035681,7]
[314998808,1708722642414,-155.57626885,0.00035691,7]
[314998809,1708722642424,-150.0,0.00035699,7]
[314998810,1708722642433,-239.77581035,0.00035703,7]
[314998811,1708722642442,-150.0,0.00035719,7]
[314998812,1708722642452,-239.77581035,0.00035742,7]
[314998813,1708722642461,-150.0,0.00035742,7]
[314998814,1708722642470,-239.77581035,0.00035781,7]
[314998815,1708722642480,-150.0,0.00035795,7]
[314998816,1708722642489,-165.11170113,0.00035796,7]
[314998817,1708722642500,-10000.0,0.00035798,2]
[314998818,1708722642509,-150.0,0.00035813,7]
[314998819,1708722642518,-150.18,0.00035814,2]
[314998820,1708722642528,-239.77581035,0.00035819,7]
[314998821,1708722642537,-239.77581035,0.00035858,7]
[314998822,1708722642546,-150.0,0.00035864,7]
[314998823,1708722642556,-898.14,0.0003588,10]
[314998824,1708722642565,-159.39088987,0.00035884,7]
[314998825,1708722642574,-150.0,0.00035884,7]
[314998826,1708722642584,-58000.0,0.0003589,3]
[314998827,1708722642593,-411.0,0.0003589,2]
[314998828,1708722642602,-239.77581035,0.00035897,7]
[314998829,1708722642611,-200.0,0.000359,9]
[314998830,1708722642621,-179.62,0.00035906,10]
[314998831,1708722642630,-150.0,0.00035915,7]
[314998832,1708722642640,-190.774385,0.00035916,25]
[314998833,1708722642649,-155.14487318,0.00035916,7]
[314998834,1708722642659,-150.0,0.00035922,7]
[314998835,1708722642669,-239.77581035,0.00035936,7]
[314998836,1708722642679,-154.16931544,0.0003594,7]
[314998837,1708722642688,-150.0,0.00035955,7]
[314998838,1708722642698,-150.0,0.00035955,7]
[314998839,1708722642708,-215.55,0.0003596,10]
[314998840,1708722642717,-400.0,0.0003597,2]
[314998841,1708722642726,-300.0,0.0003597,2]
[314998842,1708722642736,-165.11170113,0.00035974,7]
[314998843,1708722642745,-239.77581035,0.00035975,7]
[314998844,1708722642754,-5800.0,0.00035993,2]
[314998845,1708722642764,-159.40627798,0.00035995,3]
[314998846,1708722642773,-1000.0,0.00036,6]
[314998847,1708722642782,-1004.0,0.00036,6]
[314998852,1708722642793,-1005.0,0.00036,6]
[314998853,1708722642969,-411.0,0.00036,2]
[314998854,1708722642980,-155.64218075,0.00036012,7]
[314998855,1708722642989,-239.77581035,0.00036013,7]
[314998856,1708722643000,-154.98329938,0.00036014,7]
[314998857,1708722643010,-150.0,0.00036026,7]
[314998858,1708722643020,-150.0,0.00036035,7]
[314998859,1708722643031,-160.49481865,0.00036039,7]
[314998860,1708722643043,-150.0,0.00036047,7]
[314998861,1708722643052,-239.77581035,0.00036052,7]
[314998862,1708722643062,-155.64218075,0.00036062,7]
[314998863,1708722643072,-165.11170113,0.00036067,7]
[314998864,1708722643081,-150.0,0.00036083,7]
[314998865,1708722643092,-239.77581035,0.00036091,7]
[314998866,1708722643102,-150.0,0.00036097,7]
[314998867,1708722643111,-150.0,0.00036124,7]
[314998868,1708722643122,-239.77581035,0.0003613,7]
[314998869,1708722643132,-500.0,0.00036142,10]
[314998870,1708722643141,-150.0,0.00036155,7]
[314998871,1708722643151,-157.0,0.0003616,7]
[314998872,1708722643160,-239.77581035,0.00036169,7]
[314998873,1708722643170,-150.0,0.00036169,7]
[314998874,1708722643180,-444.16,0.00036187,2]
[314998875,1708722643189,-1000.0,0.000362,2]
[314998876,1708722643199,-1111.11,0.000362,3]
[314998877,1708722643208,-1111.11,0.000362,3]
[314998878,1708722643219,-1111.11,0.000362,3]
[314998879,1708722643229,-1111.11,0.000362,3]
[314998880,1708722643238,-1111.11,0.000362,3]
[314998881,1708722643247,-1111.11,0.000362,3]
[314998882,1708722643257,-1111.11,0.000362,3]
[314998883,1708722643266,-1111.11,0.000362,3]
[314998884,1708722643276,-1111.11,0.000362,3]
[314998885,1708722643286,-1111.11,0.000362,3]
[314998886,1708722643296,-1111.11,0.000362,3]
[314998887,1708722643306,-1111.11,0.000362,3]
[314998888,1708722643315,-1111.11,0.000362,3]
[314998889,1708722643325,-1111.11,0.000362,3]
[314998890,1708722643334,-1111.11,0.000362,3]
[314998891,1708722643343,-1111.11,0.000362,3]
[314998892,1708722643352,-1111.11,0.000362,3]
[314998893,1708722643362,-1111.11,0.000362,3]
[314998894,1708722643371,-1111.11,0.000362,3]
[314998895,1708722643381,-1111.11,0.000362,3]
[314998896,1708722643391,-165.11170113,0.000362,7]
[314998897,1708722643400,-13625.82362861,0.00036207,9]
[314998898,1708722643410,-239.77581035,0.00036207,7]
[314998899,1708722643419,-154.16931544,0.00036223,7]
[314998900,1708722643429,-150.0,0.0003623,7]
[314998903,1708722643439,-150.0,0.0003624,7]
[314998904,1708722643448,-239.77581035,0.00036246,7]